[Event "Titled Tuesday Blitz October 25 Early 2022"]
[White "Krysa, Leandro"]
[Black "Wirig, Anthony"]
[WhiteFideId "116807"]
[BlackFideId "615013"]
[WhiteElo "2486"]
[BlackElo "2474"]
[Result "1-0"]
[Round "09"]
[TimeControl "180+1"]
[Date "2022.10.25"]
[WhiteClock "0:00:08"]
[BlackClock "0:00:03"]

1. e4 {[%clk 0:02:56]}  c5 {[%clk 0:02:59]} 2. Nf3 {[%clk 0:02:56]}  e6 {[%clk 0:03:00]} 3. d4 {[%clk 0:02:56]}  cxd4 {[%clk 0:03:01]} 4. Nxd4 {[%clk 0:02:57]}  Nf6 {[%clk 0:03:01]} 5. Nc3 {[%clk 0:02:56]}  Nc6 {[%clk 0:03:02]} 6. a3 {[%clk 0:02:56]}  Bc5 {[%clk 0:02:52]} 7. Nxc6 {[%clk 0:02:53]}  dxc6 {[%clk 0:02:53]} 8. Qxd8+ {[%clk 0:02:50]}  Kxd8 {[%clk 0:02:54]} 9. e5 {[%clk 0:02:44]}  Ng4 {[%clk 0:02:36]} 10. Ne4 {[%clk 0:02:39]}  Bd4 {[%clk 0:02:13]} 11. f4 {[%clk 0:02:39]}  f5 {[%clk 0:01:54]} 12. Ng5 {[%clk 0:02:30]}  Ke7 {[%clk 0:01:46]} 13. h3 {[%clk 0:02:21]}  Nf2 {[%clk 0:01:20]} 14. Rh2 {[%clk 0:02:20]}  h6 {[%clk 0:01:20]} 15. Nf3 {[%clk 0:02:16]}  Bb6 {[%clk 0:01:20]} 16. Ke2 {[%clk 0:01:59]}  Ne4 {[%clk 0:01:17]} 17. Be3 {[%clk 0:01:59]}  Ng3+ {[%clk 0:01:10]} 18. Kf2 {[%clk 0:01:57]}  Ne4+ {[%clk 0:01:09]} 19. Ke2 {[%clk 0:01:57]}  Ng3+ {[%clk 0:00:51]} 20. Kd2 {[%clk 0:01:39]}  Rd8+ {[%clk 0:00:47]} 21. Bd3 {[%clk 0:01:36]}  c5 {[%clk 0:00:39]} 22. Kc3 {[%clk 0:01:25]}  Bd7 {[%clk 0:00:35]} 23. Nd2 {[%clk 0:01:22]}  Bc6 {[%clk 0:00:27]} 24. Nc4 {[%clk 0:01:17]}  Ne4+ {[%clk 0:00:23]} 25. Bxe4 {[%clk 0:01:14]}  Bxe4 {[%clk 0:00:24]} 26. g4 {[%clk 0:01:08]}  Rd5 {[%clk 0:00:21]} 27. Rg1 {[%clk 0:01:04]}  Kf7 {[%clk 0:00:20]} 28. gxf5 {[%clk 0:00:57]}  Bxf5 {[%clk 0:00:16]} 29. Rhg2 {[%clk 0:00:52]}  g6 {[%clk 0:00:14]} 30. Nd6+ {[%clk 0:00:50]}  Rxd6 {[%clk 0:00:15]} 31. exd6 {[%clk 0:00:50]}  Rd8 {[%clk 0:00:13]} 32. h4 {[%clk 0:00:45]}  h5 {[%clk 0:00:10]} 33. Rd1 {[%clk 0:00:44]}  Rd7 {[%clk 0:00:10]} 34. Kc4 {[%clk 0:00:40]}  Bd8 {[%clk 0:00:05]} 35. Rh2 {[%clk 0:00:30]}  b6 {[%clk 0:00:05]} 36. b4 {[%clk 0:00:30]}  cxb4 {[%clk 0:00:06]} 37. axb4 {[%clk 0:00:30]}  Be4 {[%clk 0:00:05]} 38. Rd4 {[%clk 0:00:28]}  Bb7 {[%clk 0:00:05]} 39. Kb5 {[%clk 0:00:23]}  Bf6 {[%clk 0:00:06]} 40. Rhd2 {[%clk 0:00:20]}  Bxh4 {[%clk 0:00:05]} 41. c4 {[%clk 0:00:19]}  Bd8 {[%clk 0:00:05]} 42. c5 {[%clk 0:00:19]}  a6+ {[%clk 0:00:06]} 43. Kc4 {[%clk 0:00:19]}  Bc6 {[%clk 0:00:04]} 44. Ra2 {[%clk 0:00:12]}  a5 {[%clk 0:00:03]} 45. b5 {[%clk 0:00:12]}  Bxb5+ {[%clk 0:00:02]} 46. Kxb5 {[%clk 0:00:12]}  bxc5 {[%clk 0:00:03]} 47. Kxc5 {[%clk 0:00:11]}  Bf6 {[%clk 0:00:04]} 48. Kc6 {[%clk 0:00:10]}  Rd8 {[%clk 0:00:04]} 49. Rd3 {[%clk 0:00:08]}  h4 {[%clk 0:00:04]} 50. d7 {[%clk 0:00:08]}  h3 {[%clk 0:00:04]} 51. Bb6 {[%clk 0:00:08]}  Ra8 {[%clk 0:00:02]} 52. d8=Q {[%clk 0:00:08]}  Bxd8 {[%clk 0:00:02]} 53. Bxd8 {[%clk 0:00:08]}  Ra6+ {[%clk 0:00:03]} 54. Bb6 {[%clk 0:00:08]}  a4 {[%clk 0:00:03]} 55. Rxh3 {[%clk 0:00:08]} 1-0


[Site "https://www.chess.com"]

[Event "Titled Tuesday Blitz October 25 Early 2022"]
[White "Martinez Alcantara, Jose Eduardo"]
[Black "Seliverstov, Vladimir"]
[WhiteFideId "3805662"]
[BlackFideId "4192036"]
[WhiteElo "2703"]
[BlackElo "2489"]
[Result "1-0"]
[Round "09"]
[TimeControl "180+1"]
[Date "2022.10.25"]
[WhiteClock "0:00:40"]
[BlackClock "0:00:27"]

1. e4 {[%clk 0:03:00]}  d5 {[%clk 0:02:59]} 2. exd5 {[%clk 0:03:00]}  Qxd5 {[%clk 0:03:00]} 3. Nc3 {[%clk 0:03:00]}  Qd6 {[%clk 0:03:00]} 4. g3 {[%clk 0:02:58]}  Nf6 {[%clk 0:03:00]} 5. Bg2 {[%clk 0:02:58]}  h5 {[%clk 0:03:00]} 6. h3 {[%clk 0:02:56]}  Nc6 {[%clk 0:02:59]} 7. d3 {[%clk 0:02:56]}  Bf5 {[%clk 0:02:57]} 8. Nge2 {[%clk 0:02:55]}  O-O-O {[%clk 0:02:56]} 9. Be3 {[%clk 0:02:54]}  e5 {[%clk 0:02:51]} 10. Nb5 {[%clk 0:02:37]}  Qb4+ {[%clk 0:02:33]} 11. Nec3 {[%clk 0:02:36]}  Nd4 {[%clk 0:02:25]} 12. a3 {[%clk 0:02:24]}  Qa5 {[%clk 0:02:25]} 13. b4 {[%clk 0:02:03]}  Qa6 {[%clk 0:02:24]} 14. a4 {[%clk 0:01:57]}  Bxb4 {[%clk 0:02:21]} 15. O-O {[%clk 0:01:56]}  Qa5 {[%clk 0:02:20]} 16. Ne2 {[%clk 0:01:48]}  Bc5 {[%clk 0:01:45]} 17. Nexd4 {[%clk 0:01:44]}  Bxd4 {[%clk 0:01:34]} 18. Qf3 {[%clk 0:01:39]}  Be6 {[%clk 0:01:25]} 19. Qxb7+ {[%clk 0:01:37]}  Kd7 {[%clk 0:01:25]} 20. Bxd4 {[%clk 0:01:24]}  exd4 {[%clk 0:01:22]} 21. Nxd4 {[%clk 0:01:24]}  Bd5 {[%clk 0:01:20]} 22. Qb5+ {[%clk 0:01:21]}  Qxb5 {[%clk 0:01:19]} 23. axb5 {[%clk 0:01:22]}  Ra8 {[%clk 0:01:13]} 24. Rfe1 {[%clk 0:01:22]}  Bxg2 {[%clk 0:01:10]} 25. Kxg2 {[%clk 0:01:23]}  h4 {[%clk 0:01:10]} 26. g4 {[%clk 0:01:23]}  Nd5 {[%clk 0:01:10]} 27. Kf3 {[%clk 0:01:17]}  Rh6 {[%clk 0:01:08]} 28. Re5 {[%clk 0:01:15]}  Rf6+ {[%clk 0:01:05]} 29. Rf5 {[%clk 0:01:15]}  Rxf5+ {[%clk 0:01:04]} 30. Nxf5 {[%clk 0:01:15]}  g5 {[%clk 0:01:05]} 31. Nd4 {[%clk 0:00:55]}  Nf4 {[%clk 0:01:00]} 32. Ne2 {[%clk 0:00:51]}  Ne6 {[%clk 0:00:43]} 33. d4 {[%clk 0:00:51]}  Kd6 {[%clk 0:00:38]} 34. c4 {[%clk 0:00:52]}  f6 {[%clk 0:00:29]} 35. Ra6+ {[%clk 0:00:52]}  Kd7 {[%clk 0:00:29]} 36. Ke4 {[%clk 0:00:43]}  Re8 {[%clk 0:00:27]} 37. Kd3 {[%clk 0:00:43]}  Nf4+ {[%clk 0:00:26]} 38. Nxf4 {[%clk 0:00:43]}  gxf4 {[%clk 0:00:27]} 39. Rxf6 {[%clk 0:00:43]}  Re1 {[%clk 0:00:26]} 40. Rxf4 {[%clk 0:00:43]}  Rh1 {[%clk 0:00:27]} 41. Rf3 {[%clk 0:00:42]}  Ke6 {[%clk 0:00:27]} 42. g5 {[%clk 0:00:39]}  Rg1 {[%clk 0:00:27]} 43. Rf4 {[%clk 0:00:40]} 1-0


[Site "https://www.chess.com"]

[Event "Titled Tuesday Blitz October 25 Early 2022"]
[White "Matlakov, Maxim"]
[Black "Rohith Krishna S"]
[WhiteFideId "4168003"]
[BlackFideId "46617051"]
[WhiteElo "2669"]
[BlackElo "2270"]
[Result "1-0"]
[Round "09"]
[TimeControl "180+1"]
[Date "2022.10.25"]
[WhiteClock "0:00:13"]
[BlackClock "0:00:15"]

1. Nf3 {[%clk 0:03:00]}  Nf6 {[%clk 0:02:32]} 2. g3 {[%clk 0:03:00]}  g6 {[%clk 0:02:31]} 3. Bg2 {[%clk 0:03:00]}  Bg7 {[%clk 0:02:32]} 4. d4 {[%clk 0:03:01]}  O-O {[%clk 0:02:33]} 5. O-O {[%clk 0:03:02]}  d6 {[%clk 0:02:34]} 6. Nc3 {[%clk 0:02:58]}  Nbd7 {[%clk 0:02:32]} 7. e4 {[%clk 0:02:56]}  e5 {[%clk 0:02:32]} 8. Re1 {[%clk 0:02:57]}  Re8 {[%clk 0:02:32]} 9. a4 {[%clk 0:02:55]}  c6 {[%clk 0:02:31]} 10. h3 {[%clk 0:02:55]}  Qc7 {[%clk 0:02:31]} 11. a5 {[%clk 0:02:47]}  Nf8 {[%clk 0:02:31]} 12. Be3 {[%clk 0:02:46]}  N6d7 {[%clk 0:02:30]} 13. Kh2 {[%clk 0:02:45]}  Ne6 {[%clk 0:02:30]} 14. Qd2 {[%clk 0:02:43]}  Rb8 {[%clk 0:02:26]} 15. b3 {[%clk 0:02:41]}  b5 {[%clk 0:02:24]} 16. axb6 {[%clk 0:02:42]}  axb6 {[%clk 0:02:24]} 17. d5 {[%clk 0:02:42]}  Nec5 {[%clk 0:02:22]} 18. b4 {[%clk 0:02:37]}  Na6 {[%clk 0:02:21]} 19. dxc6 {[%clk 0:02:36]}  Nf6 {[%clk 0:02:16]} 20. b5 {[%clk 0:01:46]}  Nc5 {[%clk 0:02:14]} 21. Nd5 {[%clk 0:01:42]}  Nxd5 {[%clk 0:02:02]} 22. exd5 {[%clk 0:01:43]}  f5 {[%clk 0:02:02]} 23. Ra3 {[%clk 0:01:32]}  e4 {[%clk 0:01:52]} 24. Nd4 {[%clk 0:01:30]}  Qf7 {[%clk 0:01:52]} 25. Nb3 {[%clk 0:01:24]}  Bb2 {[%clk 0:01:27]} 26. Ra2 {[%clk 0:01:11]}  Bf6 {[%clk 0:01:27]} 27. Nxc5 {[%clk 0:01:09]}  bxc5 {[%clk 0:01:26]} 28. c4 {[%clk 0:01:08]}  Qg7 {[%clk 0:01:25]} 29. Bf4 {[%clk 0:01:01]}  Rd8 {[%clk 0:01:13]} 30. Rb1 {[%clk 0:01:00]}  g5 {[%clk 0:01:12]} 31. Be3 {[%clk 0:00:57]}  f4 {[%clk 0:01:07]} 32. gxf4 {[%clk 0:00:56]}  g4 {[%clk 0:01:07]} 33. b6 {[%clk 0:00:49]}  gxh3 {[%clk 0:00:55]} 34. Bh1 {[%clk 0:00:49]}  Bc3 {[%clk 0:00:39]} 35. Qc2 {[%clk 0:00:41]}  Rxb6 {[%clk 0:00:28]} 36. Rxb6 {[%clk 0:00:39]}  Kh8 {[%clk 0:00:28]} 37. Ra3 {[%clk 0:00:25]}  Bf6 {[%clk 0:00:22]} 38. Ra8 {[%clk 0:00:13]}  Rg8 {[%clk 0:00:21]} 39. Rb1 {[%clk 0:00:13]}  Bh4 {[%clk 0:00:22]} 40. Bxe4 {[%clk 0:00:13]}  Bg3+ {[%clk 0:00:19]} 41. fxg3 {[%clk 0:00:13]}  Qxg3+ {[%clk 0:00:20]} 42. Kh1 {[%clk 0:00:13]}  Qxe3 {[%clk 0:00:20]} 43. Qb2+ {[%clk 0:00:13]}  Rg7 {[%clk 0:00:15]} 44. Rxc8# {[%clk 0:00:13]} 1-0


[Site "https://www.chess.com"]

[Event "Titled Tuesday Blitz October 25 Early 2022"]
[White "Oparin, Grigoriy"]
[Black "Postny, Evgeny"]
[WhiteFideId "24125890"]
[BlackFideId "2804344"]
[WhiteElo "2639"]
[BlackElo "2473"]
[Result "1/2-1/2"]
[Round "09"]
[TimeControl "180+1"]
[Date "2022.10.25"]
[WhiteClock "0:00:23"]
[BlackClock "0:00:05"]

1. d4 {[%clk 0:03:00]}  d5 {[%clk 0:02:56]} 2. c4 {[%clk 0:03:01]}  c6 {[%clk 0:02:57]} 3. Nf3 {[%clk 0:03:01]}  Nf6 {[%clk 0:02:57]} 4. Nc3 {[%clk 0:03:02]}  a6 {[%clk 0:02:54]} 5. e3 {[%clk 0:03:02]}  b5 {[%clk 0:02:54]} 6. b3 {[%clk 0:03:02]}  Bg4 {[%clk 0:02:53]} 7. Bd2 {[%clk 0:02:58]}  e6 {[%clk 0:02:52]} 8. a4 {[%clk 0:02:58]}  b4 {[%clk 0:02:43]} 9. Na2 {[%clk 0:02:58]}  a5 {[%clk 0:02:43]} 10. Be2 {[%clk 0:02:52]}  Nbd7 {[%clk 0:02:41]} 11. O-O {[%clk 0:02:52]}  Bd6 {[%clk 0:02:41]} 12. Nc1 {[%clk 0:02:52]}  Ne4 {[%clk 0:02:35]} 13. Nd3 {[%clk 0:02:51]}  O-O {[%clk 0:02:31]} 14. Rc1 {[%clk 0:02:51]}  Qe7 {[%clk 0:02:23]} 15. h3 {[%clk 0:02:51]}  Bxf3 {[%clk 0:02:18]} 16. Bxf3 {[%clk 0:02:50]}  f5 {[%clk 0:02:18]} 17. Be1 {[%clk 0:02:47]}  Rae8 {[%clk 0:02:05]} 18. Qe2 {[%clk 0:02:44]}  Bb8 {[%clk 0:02:04]} 19. cxd5 {[%clk 0:02:36]}  cxd5 {[%clk 0:02:04]} 20. Rc6 {[%clk 0:02:36]}  Rc8 {[%clk 0:02:01]} 21. Ra6 {[%clk 0:02:35]}  Nc3 {[%clk 0:01:45]} 22. Bxc3 {[%clk 0:02:34]}  Rxc3 {[%clk 0:01:45]} 23. Rb1 {[%clk 0:01:53]}  Bc7 {[%clk 0:01:41]} 24. Nc1 {[%clk 0:01:41]}  Nb8 {[%clk 0:01:35]} 25. Na2 {[%clk 0:01:30]}  Nxa6 {[%clk 0:01:22]} 26. Qxa6 {[%clk 0:01:29]}  Rc2 {[%clk 0:01:12]} 27. Nc1 {[%clk 0:01:27]}  Qd6 {[%clk 0:01:11]} 28. Qxd6 {[%clk 0:01:26]}  Bxd6 {[%clk 0:01:12]} 29. Bd1 {[%clk 0:01:26]}  Rd2 {[%clk 0:01:02]} 30. Ne2 {[%clk 0:01:09]}  f4 {[%clk 0:00:39]} 31. exf4 {[%clk 0:01:09]}  Bxf4 {[%clk 0:00:38]} 32. g3 {[%clk 0:01:10]}  Bd6 {[%clk 0:00:31]} 33. Rc1 {[%clk 0:01:10]}  Rf7 {[%clk 0:00:18]} 34. Rc8+ {[%clk 0:01:01]}  Bf8 {[%clk 0:00:17]} 35. Rc1 {[%clk 0:01:02]}  g6 {[%clk 0:00:12]} 36. Kf1 {[%clk 0:01:00]}  Bd6 {[%clk 0:00:09]} 37. Ke1 {[%clk 0:00:59]}  Rb2 {[%clk 0:00:09]} 38. Rc6 {[%clk 0:00:57]}  Rd7 {[%clk 0:00:09]} 39. Nc1 {[%clk 0:00:40]}  Rc7 {[%clk 0:00:06]} 40. Rxc7 {[%clk 0:00:34]}  Bxc7 {[%clk 0:00:07]} 41. Nd3 {[%clk 0:00:34]}  Ra2 {[%clk 0:00:06]} 42. Nc1 {[%clk 0:00:35]}  Ra1 {[%clk 0:00:05]} 43. Kd2 {[%clk 0:00:35]}  Bb6 {[%clk 0:00:03]} 44. Ne2 {[%clk 0:00:35]}  Ra2+ {[%clk 0:00:03]} 45. Bc2 {[%clk 0:00:36]}  Ra1 {[%clk 0:00:04]} 46. Bd1 {[%clk 0:00:35]}  Kf7 {[%clk 0:00:04]} 47. f4 {[%clk 0:00:35]}  Ke7 {[%clk 0:00:04]} 48. g4 {[%clk 0:00:34]}  Kd6 {[%clk 0:00:04]} 49. g5 {[%clk 0:00:32]}  Kd7 {[%clk 0:00:04]} 50. h4 {[%clk 0:00:32]}  Ke7 {[%clk 0:00:04]} 51. Kc2 {[%clk 0:00:25]}  Ra2+ {[%clk 0:00:04]} 52. Kc1 {[%clk 0:00:23]}  Rxe2 {[%clk 0:00:03]} 53. Bxe2 {[%clk 0:00:23]}  Bxd4 {[%clk 0:00:04]} 54. Kd2 {[%clk 0:00:24]}  Bf2 {[%clk 0:00:04]} 55. Bb5 {[%clk 0:00:23]}  Bxh4 {[%clk 0:00:03]} 56. Ke3 {[%clk 0:00:23]}  Bg3 {[%clk 0:00:04]} 57. Kf3 {[%clk 0:00:23]}  Be1 {[%clk 0:00:03]} 58. Ke2 {[%clk 0:00:23]}  Bc3 {[%clk 0:00:04]} 59. Ke3 {[%clk 0:00:23]}  Bg7 {[%clk 0:00:05]} 60. Bc6 {[%clk 0:00:23]}  Bc3 {[%clk 0:00:05]} 61. Bb5 {[%clk 0:00:23]}  Kd6 {[%clk 0:00:06]} 62. Be8 {[%clk 0:00:24]}  Ke7 {[%clk 0:00:05]} 63. Bb5 {[%clk 0:00:23]} 1/2-1/2


[Site "https://www.chess.com"]

[Event "Titled Tuesday Blitz October 25 Early 2022"]
[White "Pultinevicius, Paulius"]
[Black "Dardha, Daniel"]
[WhiteFideId "12809390"]
[BlackFideId "240990"]
[WhiteElo "2500"]
[BlackElo "2528"]
[Result "1-0"]
[Round "09"]
[TimeControl "180+1"]
[Date "2022.10.25"]
[WhiteClock "0:00:03"]
[BlackClock "0:00:02"]

1. d4 {[%clk 0:03:00]}  d5 {[%clk 0:03:00]} 2. c4 {[%clk 0:03:00]}  e6 {[%clk 0:03:00]} 3. Nf3 {[%clk 0:03:00]}  Nf6 {[%clk 0:03:01]} 4. Nc3 {[%clk 0:03:00]}  c5 {[%clk 0:03:00]} 5. e3 {[%clk 0:02:55]}  a6 {[%clk 0:02:59]} 6. a3 {[%clk 0:02:50]}  dxc4 {[%clk 0:02:56]} 7. Bxc4 {[%clk 0:02:51]}  b5 {[%clk 0:02:55]} 8. Ba2 {[%clk 0:02:52]}  Bb7 {[%clk 0:02:53]} 9. O-O {[%clk 0:02:52]}  Nbd7 {[%clk 0:02:42]} 10. Qe2 {[%clk 0:02:42]}  Be7 {[%clk 0:02:37]} 11. Rd1 {[%clk 0:02:41]}  Qc7 {[%clk 0:02:33]} 12. d5 {[%clk 0:02:26]}  exd5 {[%clk 0:02:34]} 13. Nxd5 {[%clk 0:02:26]}  Nxd5 {[%clk 0:02:34]} 14. Bxd5 {[%clk 0:02:26]}  Nf6 {[%clk 0:02:27]} 15. Bxb7 {[%clk 0:02:19]}  Qxb7 {[%clk 0:02:28]} 16. b3 {[%clk 0:02:16]}  O-O {[%clk 0:02:28]} 17. Bb2 {[%clk 0:02:16]}  Rfd8 {[%clk 0:02:25]} 18. Ne5 {[%clk 0:02:10]}  Bf8 {[%clk 0:02:20]} 19. Rac1 {[%clk 0:02:00]}  Rd5 {[%clk 0:02:17]} 20. f3 {[%clk 0:01:30]}  Re8 {[%clk 0:02:06]} 21. Nd3 {[%clk 0:01:11]}  Qb6 {[%clk 0:01:45]} 22. Nf4 {[%clk 0:00:43]}  Rf5 {[%clk 0:01:33]} 23. Qf2 {[%clk 0:00:39]}  Qc6 {[%clk 0:01:16]} 24. g4 {[%clk 0:00:34]}  Rg5 {[%clk 0:01:07]} 25. h4 {[%clk 0:00:33]}  Nxg4 {[%clk 0:01:08]} 26. fxg4 {[%clk 0:00:33]}  Rxg4+ {[%clk 0:01:08]} 27. Kh2 {[%clk 0:00:33]}  Qh6 {[%clk 0:00:45]} 28. Kh3 {[%clk 0:00:29]}  f5 {[%clk 0:00:20]} 29. Ng2 {[%clk 0:00:17]}  Bd6 {[%clk 0:00:16]} 30. Qxf5 {[%clk 0:00:09]}  Rg3+ {[%clk 0:00:12]} 31. Kh2 {[%clk 0:00:09]}  Rf3+ {[%clk 0:00:07]} 32. Rxd6 {[%clk 0:00:07]}  Qxd6+ {[%clk 0:00:08]} 33. Nf4 {[%clk 0:00:07]}  Qd2+ {[%clk 0:00:04]} 34. Kh1 {[%clk 0:00:08]}  Qxb2 {[%clk 0:00:03]} 35. Rg1 {[%clk 0:00:09]}  Qe5 {[%clk 0:00:01]} 36. Qd7 {[%clk 0:00:05]}  Qe7 {[%clk 0:00:01]} 37. Qg4 {[%clk 0:00:03]}  Rxe3 {[%clk 0:00:01]} 38. Nd5 {[%clk 0:00:03]}  Qe4+ {[%clk 0:00:02]} 39. Qxe4 {[%clk 0:00:03]}  R3xe4 {[%clk 0:00:03]} 40. Nf6+ {[%clk 0:00:04]}  Kf7 {[%clk 0:00:03]} 41. Nxe4 {[%clk 0:00:04]}  Re7 {[%clk 0:00:04]} 42. Rf1+ {[%clk 0:00:04]}  Kg6 {[%clk 0:00:03]} 43. Nxc5 {[%clk 0:00:05]}  Re3 {[%clk 0:00:02]} 44. Rb1 {[%clk 0:00:04]}  a5 {[%clk 0:00:01]} 45. a4 {[%clk 0:00:04]}  bxa4 {[%clk 0:00:01]} 46. bxa4 {[%clk 0:00:05]}  Rh3+ {[%clk 0:00:01]} 47. Kg2 {[%clk 0:00:05]}  Rxh4 {[%clk 0:00:02]} 48. Rb5 {[%clk 0:00:05]}  h5 {[%clk 0:00:02]} 49. Rxa5 {[%clk 0:00:06]}  Rg4+ {[%clk 0:00:03]} 50. Kf3 {[%clk 0:00:05]}  Rc4 {[%clk 0:00:03]} 51. Ne4 {[%clk 0:00:05]}  Rb4 {[%clk 0:00:02]} 52. Rg5+ {[%clk 0:00:04]}  Kh6 {[%clk 0:00:02]} 53. a5 {[%clk 0:00:02]}  Ra4 {[%clk 0:00:01]} 54. Rb5 {[%clk 0:00:02]}  h4 {[%clk 0:00:02]} 55. Kf4 {[%clk 0:00:02]}  h3 {[%clk 0:00:02]} 56. Kf3 {[%clk 0:00:01]}  h2 {[%clk 0:00:02]} 57. Nf2 {[%clk 0:00:02]}  Ra2 {[%clk 0:00:02]} 58. Kg2 {[%clk 0:00:02]}  Rxf2+ {[%clk 0:00:02]} 59. Kh1 {[%clk 0:00:03]} 1-0


[Site "https://www.chess.com"]

[Event "Titled Tuesday Blitz October 25 Early 2022"]
[White "Sarana, Alexey"]
[Black "Perez Ponsa, Federico"]
[WhiteFideId "24133795"]
[BlackFideId "117927"]
[WhiteElo "2689"]
[BlackElo "2604"]
[Result "0-1"]
[Round "09"]
[TimeControl "180+1"]
[Date "2022.10.25"]
[WhiteClock "0:00:17"]
[BlackClock "0:01:08"]

1. c4 {[%clk 0:03:00]}  Nf6 {[%clk 0:02:58]} 2. Nc3 {[%clk 0:03:00]}  g6 {[%clk 0:02:58]} 3. d4 {[%clk 0:03:00]}  d6 {[%clk 0:02:58]} 4. e4 {[%clk 0:03:00]}  Bg7 {[%clk 0:02:59]} 5. Be2 {[%clk 0:03:01]}  O-O {[%clk 0:03:00]} 6. Be3 {[%clk 0:03:02]}  e5 {[%clk 0:03:00]} 7. d5 {[%clk 0:03:02]}  Na6 {[%clk 0:03:01]} 8. Nf3 {[%clk 0:03:02]}  Nc5 {[%clk 0:02:57]} 9. Nd2 {[%clk 0:03:02]}  a5 {[%clk 0:02:57]} 10. g4 {[%clk 0:03:02]}  c6 {[%clk 0:02:56]} 11. f3 {[%clk 0:02:48]}  a4 {[%clk 0:02:47]} 12. h4 {[%clk 0:02:48]}  h5 {[%clk 0:02:41]} 13. g5 {[%clk 0:02:48]}  Ne8 {[%clk 0:02:33]} 14. Qc2 {[%clk 0:02:45]}  Qa5 {[%clk 0:02:33]} 15. O-O-O {[%clk 0:02:43]}  Bd7 {[%clk 0:02:30]} 16. Kb1 {[%clk 0:02:41]}  Nc7 {[%clk 0:02:30]} 17. a3 {[%clk 0:02:37]}  Rfb8 {[%clk 0:02:28]} 18. Na2 {[%clk 0:02:06]}  N7a6 {[%clk 0:02:20]} 19. Qc3 {[%clk 0:02:04]}  Qc7 {[%clk 0:02:16]} 20. Nb4 {[%clk 0:02:04]}  Be8 {[%clk 0:01:55]} 21. Rc1 {[%clk 0:01:58]}  Qe7 {[%clk 0:01:53]} 22. Ka2 {[%clk 0:01:55]}  Qc7 {[%clk 0:01:53]} 23. Rhd1 {[%clk 0:01:54]}  Qe7 {[%clk 0:01:54]} 24. Rc2 {[%clk 0:01:54]}  Qc7 {[%clk 0:01:54]} 25. Bf2 {[%clk 0:01:43]}  Qe7 {[%clk 0:01:55]} 26. Nb1 {[%clk 0:01:40]}  Nb3 {[%clk 0:01:53]} 27. Nxa6 {[%clk 0:01:35]}  Rxa6 {[%clk 0:01:53]} 28. c5 {[%clk 0:01:34]}  Raa8 {[%clk 0:01:46]} 29. cxd6 {[%clk 0:00:52]}  Qxd6 {[%clk 0:01:47]} 30. dxc6 {[%clk 0:00:52]}  Qxc6 {[%clk 0:01:44]} 31. Bc4 {[%clk 0:00:52]}  Nd4 {[%clk 0:01:32]} 32. Rcc1 {[%clk 0:00:52]}  Bd7 {[%clk 0:01:28]} 33. Qd3 {[%clk 0:00:48]}  Be6 {[%clk 0:01:25]} 34. Bxd4 {[%clk 0:00:32]}  b5 {[%clk 0:01:21]} 35. Bxe6 {[%clk 0:00:28]}  Qxe6+ {[%clk 0:01:21]} 36. Ka1 {[%clk 0:00:29]}  exd4 {[%clk 0:01:22]} 37. f4 {[%clk 0:00:29]}  b4 {[%clk 0:01:22]} 38. e5 {[%clk 0:00:28]}  bxa3 {[%clk 0:01:21]} 39. bxa3 {[%clk 0:00:25]}  Rb3 {[%clk 0:01:18]} 40. Qxd4 {[%clk 0:00:25]}  Rab8 {[%clk 0:01:19]} 41. Rd2 {[%clk 0:00:23]}  Bf8 {[%clk 0:01:15]} 42. Qxa4 {[%clk 0:00:22]}  Qb6 {[%clk 0:01:12]} 43. Qe4 {[%clk 0:00:18]}  Bxa3 {[%clk 0:01:10]} 44. Rcd1 {[%clk 0:00:18]}  Bb2+ {[%clk 0:01:09]} 45. Rxb2 {[%clk 0:00:18]}  Rxb2 {[%clk 0:01:09]} 46. Qd3 {[%clk 0:00:17]}  Ra2+ {[%clk 0:01:08]} 0-1


[Site "https://www.chess.com"]

[Event "Titled Tuesday Blitz October 25 Early 2022"]
[White "Shankland, Sam"]
[Black "Gharibyan, Mamikon"]
[WhiteFideId "2004887"]
[BlackFideId "13308300"]
[WhiteElo "2612"]
[BlackElo "2378"]
[Result "1-0"]
[Round "09"]
[TimeControl "180+1"]
[Date "2022.10.25"]
[WhiteClock "0:01:34"]
[BlackClock "0:00:03"]

1. d4 {[%clk 0:03:00]}  Nf6 {[%clk 0:02:06]} 2. c4 {[%clk 0:03:00]}  e6 {[%clk 0:02:05]} 3. Nc3 {[%clk 0:03:00]}  d5 {[%clk 0:02:05]} 4. Bg5 {[%clk 0:02:58]}  Bb4 {[%clk 0:02:03]} 5. e3 {[%clk 0:02:57]}  h6 {[%clk 0:01:59]} 6. Bh4 {[%clk 0:02:53]}  c5 {[%clk 0:01:56]} 7. cxd5 {[%clk 0:02:51]}  Qa5 {[%clk 0:01:55]} 8. Ne2 {[%clk 0:02:45]}  Nxd5 {[%clk 0:01:31]} 9. a3 {[%clk 0:02:43]}  Bxc3+ {[%clk 0:01:29]} 10. bxc3 {[%clk 0:02:42]}  cxd4 {[%clk 0:01:22]} 11. exd4 {[%clk 0:02:34]}  O-O {[%clk 0:01:17]} 12. Qd2 {[%clk 0:02:35]}  Nc6 {[%clk 0:01:04]} 13. c4 {[%clk 0:02:34]}  Qxd2+ {[%clk 0:00:57]} 14. Kxd2 {[%clk 0:02:35]}  Nb6 {[%clk 0:00:58]} 15. c5 {[%clk 0:02:28]}  Nd5 {[%clk 0:00:56]} 16. Rb1 {[%clk 0:02:24]}  b6 {[%clk 0:00:51]} 17. Bg3 {[%clk 0:02:24]}  Rd8 {[%clk 0:00:47]} 18. Bd6 {[%clk 0:02:22]}  Nde7 {[%clk 0:00:43]} 19. g4 {[%clk 0:02:16]}  Bb7 {[%clk 0:00:29]} 20. Bg2 {[%clk 0:02:14]}  Nc8 {[%clk 0:00:25]} 21. Bg3 {[%clk 0:02:08]}  Rd7 {[%clk 0:00:21]} 22. Rhc1 {[%clk 0:01:58]}  N8e7 {[%clk 0:00:09]} 23. Ke1 {[%clk 0:01:57]}  Rad8 {[%clk 0:00:03]} 24. cxb6 {[%clk 0:01:56]}  axb6 {[%clk 0:00:04]} 25. Rxb6 {[%clk 0:01:55]}  h5 {[%clk 0:00:02]} 26. gxh5 {[%clk 0:01:54]}  Ra8 {[%clk 0:00:02]} 27. Bh4 {[%clk 0:01:45]}  Nd5 {[%clk 0:00:01]} 28. Rbxc6 {[%clk 0:01:43]}  Bxc6 {[%clk 0:00:01]} 29. Rxc6 {[%clk 0:01:44]}  Rxa3 {[%clk 0:00:02]} 30. Rc1 {[%clk 0:01:42]}  Kh7 {[%clk 0:00:03]} 31. Bg5 {[%clk 0:01:40]}  f5 {[%clk 0:00:03]} 32. h4 {[%clk 0:01:39]}  Ra2 {[%clk 0:00:03]} 33. Be3 {[%clk 0:01:36]}  Rb2 {[%clk 0:00:03]} 34. Bf3 {[%clk 0:01:35]}  Ra7 {[%clk 0:00:03]} 35. Bxd5 {[%clk 0:01:33]}  exd5 {[%clk 0:00:04]} 36. Nf4 {[%clk 0:01:33]}  Ra5 {[%clk 0:00:04]} 37. Kf1 {[%clk 0:01:34]}  Rba2 {[%clk 0:00:03]} 38. Kg2 {[%clk 0:01:34]} 1-0


[Site "https://www.chess.com"]